bitfinex-derivatives/quotes_ETHF0:USTF0_20251203
["timestamp","ask_amount","ask_price","bid_price","bid_amount"]
[1764764532670,2.146,3073.6,3073.5,0.00319364]
[1764764533871,1.073,3073.6,3073.5,0.00319364]
[1764764534071,5.04413456,3073.9,3073.5,1.85349364]
[1764764534277,1.073,3073.6,3073.5,1.85349364]
[1764764534478,2.146,3073.6,3073.5,0.00319364]
[1764764534883,2.30864,3073.6,3072.5,1.8503]
[1764764535080,3.2078,3073.1,3072.5,1.8503]
[1764764535279,13.097,3073.0,3072.5,1.8503]
[1764764535483,13.097,3073.0,3072.5,4.9718]
[1764764535686,13.097,3073.0,3072.9,3.1215]
[1764764535875,13.097,3073.0,3072.9,5.79229606]
[1764764536186,3.2078,3073.1,3073.0,4.9718]
[1764764536379,3.2078,3073.1,3072.9,0.00259606]
[1764764536579,2.146,3072.6,3072.5,1.8503]
[1764764536774,3.2078,3072.7,3072.6,5.7897]
[1764764537581,2.146,3072.6,3072.5,1.8503]
[1764764537779,1.67093196,3072.6,3072.0,1.8503]
[1764764538779,1.67093196,3072.6,3072.0,1.85373742]
[1764764539079,16.3168,3072.7,3072.5,4.9718]
[1764764539385,16.3168,3072.7,3072.6,5.7897]
[1764764541085,16.3168,3072.7,3072.6,3.1215]
[1764764541285,16.3168,3072.7,3072.5,1.8503]
[1764764541286,1.073,3072.6,3072.5,1.8503]
[1764764541785,16.3168,3072.7,3072.6,5.7897]
[1764764541975,16.3168,3072.7,3072.6,3.1215]
[1764764542175,16.3168,3072.7,3072.6,5.7897]
[1764764543188,3.2078,3073.1,3073.0,1.8503]
[1764764543388,3.2078,3073.1,3073.0,7.64]
[1764764543581,4.2808,3073.1,3073.0,1.8503]
[1764764543979,5.3538,3073.1,3073.0,1.8503]
[1764764544388,5.62123364,3073.1,3073.0,1.8503]
[1764764544890,4.54823364,3073.1,3073.0,1.8503]
[1764764545087,3.47523364,3073.1,3073.0,7.64]
[1764764546181,0.0048778,3073.4,3073.3,5.7897]
[1764764546382,0.27256093,3073.4,3073.3,5.7897]
[1764764547787,3.2078,3073.5,3073.4,5.7897]
[1764764548483,0.0027726,3073.9,3073.5,1.8503]
[1764764548688,0.0027726,3073.9,3073.8,5.7897]
[1764764549391,0.0027726,3073.9,3073.8,3.1215]
[1764764550377,0.0027726,3073.9,3073.8,5.7897]
[1764764552593,1.3456,3073.6,3073.5,1.8503]
[1764764552887,0.0027726,3073.9,3073.5,4.9718]
[1764764553388,3.6701,3073.6,3073.5,7.64]
[1764764553596,4.82739113,3073.6,3073.5,1.8503]
[1764764553887,4.82739113,3073.6,3073.4,0.0048778]
[1764764553888,0.9246,3073.5,3073.4,0.0048778]
[1764764554087,1.61960326,3073.5,3073.4,0.0048778]
[1764764555190,3.34756687,3073.5,3073.4,0.0048778]
[1764764555390,3.34756687,3073.5,3073.0,1.8503]
[1764764555586,0.69500326,3073.4,3073.0,1.8503]
[1764764555792,0.4623,3073.1,3073.0,4.8312]
[1764764556096,0.69500326,3073.1,3073.0,7.926]
[1764764556596,0.69759722,3073.3,3073.2,2.9809]
[1764764557690,0.69759722,3073.3,3073.2,6.0757]
[1764764558195,2.42556083,3073.3,3073.2,6.0757]
[1764764559288,0.36586465,3073.3,3073.2,12.0757]
[1764764559489,3.2126778,3074.0,3073.8,6.0757]
[1764764559890,0.25554854,3073.9,3073.8,6.0757]
[1764764561388,3.2126778,3074.0,3073.9,5.7391]
[1764764561692,3.44935827,3074.0,3073.9,5.7391]
[1764764561893,3.2078,3074.6,3074.5,7.5153]
[1764764562397,3.21079389,3074.6,3074.5,7.51933938]
[1764764562695,3.21079389,3074.6,3074.5,4.65333938]
[1764764562995,6.22049389,3074.6,3074.5,4.65333938]
[1764764563195,9.08709389,3074.6,3074.5,0.00403938]
[1764764563496,3.21079389,3074.6,3074.5,7.51933938]
[1764764563690,9.08709389,3074.6,3074.5,0.00403938]
[1764764564292,3.21079389,3074.6,3074.5,7.51933938]
[1764764565995,4.88172585,3074.6,3074.2,5.7439778]
[1764764566195,8.05401585,3074.6,3074.5,7.5153]
[1764764566393,7.89142585,3074.6,3074.5,7.5153]
[1764764566588,3.21079389,3074.6,3074.5,7.5153]
[1764764566792,6.22049389,3074.6,3074.5,7.5153]
[1764764567102,9.08709389,3074.6,3074.5,0.00257003]
[1764764570002,9.08709389,3074.6,3074.5,4.65187003]
[1764764570201,9.08709389,3074.6,3074.5,1.77877003]
[1764764570396,9.08709389,3074.6,3074.5,0.00257003]
[1764764571495,9.24968389,3074.6,3074.5,0.00257003]
[1764764572393,6.38308389,3074.6,3074.5,7.51787003]
[1764764572590,3.21079389,3074.6,3074.5,7.51787003]
[1764764573399,0.00299389,3074.6,3074.5,7.51787003]
[1764764576703,0.0048778,3074.9,3074.8,5.7391]
[1764764577596,0.00826016,3074.9,3074.8,5.7391]
[1764764577800,0.00826016,3074.9,3074.8,8.9469]
[1764764580500,13.8368,3075.8,3074.8,8.9469]
[1764764580699,16.8465,3075.8,3075.7,5.7391]
[1764764580906,14.07149971,3075.8,3075.7,5.7391]
[1764764581210,3.0097,3076.2,3076.1,5.7391]
[1764764581699,3.01206868,3076.2,3076.1,5.7391]
[1764764581896,3.0097,3075.9,3075.8,5.7439778]
[1764764582097,3.01206868,3076.2,3076.1,5.7391]
[1764764582293,0.00236868,3076.2,3076.1,5.7391]
[1764764583104,2.9501778,3076.5,3076.4,2.8731]
[1764764583303,0.0048778,3076.5,3076.4,5.7718]
[1764764584106,0.00874212,3076.5,3076.4,5.7718]
[1764764584409,2.95404212,3076.5,3076.4,5.7718]
[1764764584605,5.94294212,3076.5,3076.1,3.2078]
[1764764584806,5.9342,3076.2,3076.1,6.1454]
[1764764586707,5.94294212,3076.5,3076.4,2.9376]
[1764764586907,2.95404212,3076.5,3076.4,5.8363]
[1764764588001,5.94294212,3076.5,3076.4,5.8363]
[1764764588201,5.94294212,3076.5,3076.4,2.9376]
[1764764588501,2.9453,3075.9,3075.8,2.9424778]
[1764764588805,5.9342,3075.9,3075.8,0.0048778]
[1764764593321,6.09672,3075.9,3075.8,0.0048778]
[1764764593618,6.32924525,3075.9,3075.8,0.0048778]
[1764764595219,6.32924525,3075.9,3075.8,2.9424778]
[1764764595420,6.32924525,3075.9,3075.8,0.0048778]
[1764764596224,5.9342,3075.8,3075.7,3.2078]
[1764764596422,6.16672525,3075.8,3075.7,3.2078]
[1764764596624,5.9342,3075.4,3075.3,6.1454]
[1764764596822,5.9342,3075.4,3075.3,3.2078]
[1764764597523,2.9453,3075.4,3075.3,9.0441]
[1764764599225,18.9972,3075.6,3075.5,5.8363]
[1764764599425,19.22998234,3075.6,3075.5,5.8363]
[1764764600226,2.3268618,3077.5,3077.4,5.8363]
[1764764600425,7.7913,3078.0,3077.4,3.2078]
[1764764600626,2.34321215,3078.0,3077.9,9.0441]
[1764764601029,0.16234,3079.4,3078.6,5.8363]
[1764764601227,1.86085377,3079.0,3078.9,6.1454]
[1764764601428,4.80615377,3079.0,3078.9,6.1454]
[1764764601730,4.80615377,3079.0,3078.9,3.2078]
[1764764602033,7.79505377,3079.0,3078.9,3.2078]
[1764764603027,0.1623,3080.2,3079.6,5.8363]
[1764764603222,8.14376823,3079.9,3079.8,3.2078]
[1764764603930,8.14733906,3079.9,3079.8,3.2078]
[1764764604635,5.15843906,3079.9,3079.8,6.1454]
[1764764604833,8.14733906,3079.9,3079.8,3.2078]
[1764764605935,10.10700778,3079.9,3079.8,3.2078]
[1764764606238,5.9342,3079.6,3079.5,3.2078]
[1764764608832,8.14376823,3079.6,3079.5,3.2078]
[1764764609333,5.9342,3079.2,3079.1,3.2078]
[1764764609933,8.14376823,3079.2,3079.1,3.2078]
[1764764610630,2.20956823,3079.2,3079.1,9.0441]
[1764764611232,8.14376823,3079.2,3079.1,6.1454]
[1764764611636,8.14376823,3079.2,3079.1,3.2078]
[1764764614043,5.15486823,3079.2,3079.1,9.771]
[1764764614436,8.22246823,3079.2,3079.1,6.6725]
[1764764615244,8.22246823,3079.2,3079.1,3.2078]
[1764764615750,8.38481823,3079.2,3079.1,3.2078]
[1764764622349,6.7111,3078.8,3078.7,3.2078]
[1764764622545,6.87347,3078.8,3078.7,3.2078]
[1764764623550,22.16503823,3078.8,3078.7,3.2078]
[1764764624647,24.12470695,3078.8,3078.7,3.2078]
[1764764624853,6.7111,3078.7,3078.6,0.00418421]
[1764764625851,6.87347,3078.7,3078.6,0.00418421]
[1764764629046,6.7111,3078.3,3078.2,3.2078]
[1764764629252,20.17370107,3078.3,3078.2,3.2078]
[1764764629852,0.1624,3078.2,3077.6,3.2078]
[1764764630048,0.1624,3078.2,3078.1,3.4647]
[1764764630049,6.8783778,3078.2,3078.1,3.4647]
[1764764630350,7.10958772,3078.2,3078.1,3.4647]
[1764764631048,7.10958772,3078.2,3078.1,6.5632]
[1764764631253,7.10958772,3078.2,3077.6,3.21651847]
[1764764631453,6.94230992,3078.1,3078.0,3.4647]
[1764764631843,6.94230992,3078.1,3077.6,3.21651847]
[1764764632044,6.94230992,3078.0,3077.9,6.5632]
[1764764632251,3.87470992,3078.0,3077.9,6.5632]
[1764764632655,6.94230992,3078.0,3077.9,6.5632]
[1764764632850,6.94230992,3078.0,3077.9,3.4647]
[1764764633753,9.15187815,3078.0,3077.9,3.4647]
[1764764634255,3.6435,3077.7,3077.6,9.77971847]
[1764764634450,3.64678898,3077.7,3077.6,9.77971847]
[1764764635058,6.71438898,3077.7,3077.6,9.77971847]
[1764764635653,0.00328898,3077.7,3077.6,9.77971847]
[1764764640752,0.00328898,3077.7,3077.6,13.56371847]
[1764764640952,0.23161721,3078.1,3078.0,9.5462]
[1764764641154,0.0048778,3078.2,3078.1,7.32]
[1764764641360,2.21444603,3078.2,3078.1,7.32]
[1764764641664,0.0048778,3078.2,3078.1,7.32]
[1764764641865,0.00753779,3078.2,3078.1,7.32]
[1764764642859,19.8141,3078.8,3078.7,7.32]
[1764764643060,16.49461511,3078.8,3078.7,7.32]
[1764764643660,3.43961511,3078.8,3078.7,7.32]
[1764764643859,2.44380698,3078.8,3078.7,7.32]
[1764764644062,9.60510698,3078.8,3078.7,7.1997]
[1764764644266,9.60510698,3078.8,3078.5,2.1035]
[1764764644267,3.5294,3078.6,3078.5,9.3032]
[1764764644467,9.37329187,3078.8,3078.7,7.1997]
[1764764644665,9.60517264,3078.8,3078.7,7.1997]
[1764764644862,2.44387264,3078.8,3078.7,7.1997]
[1764764645261,5.97327264,3078.8,3078.7,7.1997]
[1764764645568,3.5294,3078.6,3078.5,2.1035]
[1764764645756,3.5294,3078.6,3078.5,5.6847]
[1764764646058,0.00242364,3078.8,3078.7,7.1997]
[1764764647566,2.21199187,3078.8,3078.7,7.1997]
[1764764647869,2.44388531,3078.8,3078.7,7.1997]
[1764764649259,9.60518531,3078.8,3078.5,2.1035]
[1764764649571,9.37329187,3078.8,3078.7,7.1997]
[1764764649771,9.60517631,3078.8,3078.7,7.1997]
[1764764650872,5.97327631,3078.8,3078.7,7.1997]
[1764764651370,5.97327631,3078.8,3078.5,9.3032]
[1764764651371,7.1613,3078.6,3078.5,9.3032]
[1764764651574,5.74139187,3078.8,3078.7,7.1997]
[1764764651774,5.97326034,3078.8,3078.7,7.1997]
[1764764651976,2.44386034,3078.8,3078.7,7.1997]
[1764764654077,9.60516034,3078.8,3078.7,7.1997]
[1764764654873,5.97326034,3078.8,3078.7,7.1997]
[1764764655575,9.60516034,3078.8,3078.7,7.1997]
[1764764656279,5.97326034,3078.8,3078.7,7.1997]
[1764764656779,11.44019746,3078.8,3078.0,3.09571093]
[1764764657081,0.23186847,3078.7,3078.6,7.1997]
[1764764657282,5.74139187,3078.8,3078.7,7.1997]
[1764764657482,9.6050755,3078.8,3078.7,3.6185]
[1764764658481,9.6050755,3078.8,3078.7,7.1997]
[1764764660486,10.74024905,3078.8,3078.7,7.1997]
[1764764661189,8.53068082,3078.8,3078.7,7.1997]
[1764764661387,3.57894905,3078.8,3078.7,7.1997]
[1764764661787,7.10834905,3078.8,3078.7,7.1997]
[1764764662490,23.78024905,3078.8,3078.7,7.1997]
[1764764665093,15.4837755,3078.8,3078.7,7.1997]
[1764764665387,16.61894905,3078.8,3078.7,7.1997]
[1764764668287,3.57894905,3078.8,3078.7,7.1997]
[1764764671795,3.57894905,3078.8,3078.7,10.4075]
[1764764671998,3.5796306,3078.8,3078.7,10.4075]
[1764764672199,2.44445705,3078.8,3078.7,10.4075]
[1764764672400,5.78145705,3078.8,3078.7,10.4075]
[1764764672899,2.44445705,3078.8,3078.7,10.4075]
[1764764675190,5.78145705,3078.8,3078.7,10.4075]
[1764764676502,2.44445705,3078.8,3078.7,10.4075]
[1764764676700,2.20956823,3079.1,3079.0,8.3251]
[1764764677003,2.44200643,3079.1,3079.0,8.3251]
[1764764677604,2.21296407,3079.1,3079.0,8.3251]
[1764764680395,7.45167355,3080.0,3079.9,6.2422]
[1764764680596,4.57512499,3080.0,3079.9,6.2422]
[1764764680795,6.78469322,3080.0,3079.9,6.2422]
[1764764681202,5.64951967,3080.0,3079.9,6.2422]
[1764764681403,5.65225831,3080.0,3079.9,6.24567683]
[1764764682108,5.42010687,3080.0,3079.9,6.24567683]
[1764764682306,8.52880687,3080.0,3079.9,6.24567683]
[1764764682509,5.42010687,3080.0,3079.9,6.24567683]
[1764764683211,8.52880687,3080.0,3079.9,6.24567683]
[1764764683408,12.64688042,3080.0,3079.9,6.24567683]
[1764764684205,6.0916,3079.7,3079.6,2.9912]
[1764764684404,7.22677355,3079.5,3079.4,9.1805864]
[1764764685309,7.22677355,3079.5,3079.4,9.18347522]
[1764764689718,6.25391,3079.9,3079.8,6.2422]
[1764764690017,7.62070219,3079.9,3079.8,2.9912]
[1764764690217,7.45839219,3079.9,3079.8,2.9912]
[1764764691309,7.45841378,3079.9,3079.8,2.9912]
[1764764692717,3.1087,3079.6,3079.5,7.6744]
[1764764692914,6.0916,3079.6,3079.5,6.2422]
[1764764693123,7.22677355,3079.6,3079.5,6.2422]
[1764764694307,7.22677355,3079.6,3079.4,0.00288882]
[1764764694308,7.9562,3079.5,3079.4,2.99408882]
[1764764694813,7.9562,3079.5,3079.4,6.24508882]
[1764764695217,7.9562,3079.5,3079.4,0.00288882]
[1764764695517,8.18798133,3079.5,3079.4,0.00288882]
[1764764695913,6.0916,3079.2,3078.9,3.2078]
[1764764696115,7.45855488,3079.2,3078.9,3.2078]
[1764764696417,7.48397218,3079.2,3078.9,3.2078]
[1764764696805,7.48397218,3079.2,3079.1,0.00851298]
[1764764697011,7.48397218,3079.2,3079.1,6.25071298]
[1764764697215,7.48397218,3079.2,3079.1,2.99971298]
[1764764697421,6.32338133,3079.2,3079.1,2.99971298]
[1764764697623,7.48397218,3079.2,3079.1,2.99971298]
[1764764697920,7.48397218,3079.2,3079.1,0.00851298]
[1764764698622,7.48397218,3079.2,3079.1,2.99971298]
[1764764700618,0.23178133,3079.2,3079.1,6.25071298]
[1764764700823,6.3165,3079.6,3079.5,8.174]
[1764764701125,6.54843819,3079.6,3079.5,8.174]
[1764764701322,9.53133819,3079.6,3079.5,8.174]
[1764764702623,9.53133819,3079.6,3079.5,2.9912]
[1764764702814,6.0916,3079.2,3079.1,6.25071298]
[1764764703014,7.25219085,3079.5,3079.4,6.2422]
[1764764703214,7.25219085,3079.5,3079.1,0.00851298]
[1764764703215,6.1553,3079.2,3079.1,0.00851298]
[1764764703518,6.1553,3079.2,3079.1,5.92981298]
[1764764704920,6.1553,3079.2,3079.1,2.83261298]
[1764764705816,7.47824085,3079.2,3079.1,0.00851298]
[1764764706023,7.71033002,3079.2,3079.1,0.00851298]
[1764764706420,6.1553,3078.6,3078.5,9.1291]
[1764764707524,6.1553,3078.6,3078.5,9.13253768]
[1764764708819,6.1553,3078.6,3078.5,3.21123768]
[1764764709324,6.1553,3078.6,3078.5,9.13253768]
[1764764709520,7.47826085,3078.8,3078.7,2.8241]
[1764764709719,6.1553,3078.6,3078.5,6.03533768]
[1764764710021,3.2078,3079.2,3079.1,0.16235]
[1764764710224,2.88093762,3080.0,3079.1,0.16235]
[1764764710225,0.00273864,3080.0,3079.9,5.9213]
[1764764710522,3.0473778,3080.3,3080.2,5.7683]
[1764764711120,6.1601778,3080.3,3079.9,4.08038338]
[1764764711424,6.1641574,3080.3,3080.2,2.8241]
[1764764713823,7.9763,3080.0,3079.9,6.03676973]
[1764764715126,7.9763,3080.0,3079.9,3.21266973]
[1764764715312,7.9763,3080.0,3079.9,0.00486973]
[1764764715726,8.1386,3080.0,3079.9,0.00486973]
[1764764716420,1.821,3080.0,3079.9,8.98096973]
[1764764716626,7.9763,3080.0,3079.9,0.00486973]
[1764764717717,4.8635,3080.0,3079.9,5.77316973]
[1764764717916,7.9763,3080.0,3079.9,0.00486973]
[1764764719621,7.9763,3080.0,3079.9,2.82896973]
[1764764719821,6.1641574,3080.3,3080.2,2.8241]
[1764764721421,0.0088574,3080.3,3080.2,5.7683]
[1764764721634,6.1641574,3080.3,3080.2,2.8241]
[1764764724130,6.1553,3080.1,3080.0,3.2078]
[1764764724830,6.1641574,3080.3,3080.2,5.7683]
[1764764725025,6.1641574,3080.3,3080.2,2.8241]
[1764764725332,3.0425,3080.1,3080.0,8.9761]
[1764764725726,6.1553,3080.1,3080.0,8.9761]
[1764764727528,6.1641574,3080.3,3080.2,5.7683]
[1764764727833,3.0425,3080.1,3080.0,8.9761]
[1764764728028,6.1553,3080.1,3080.0,8.9761]
[1764764728533,6.1553,3080.1,3080.0,6.0319]
[1764764728826,6.1553,3080.1,3080.0,8.9761]
[1764764729022,3.0425,3080.1,3080.0,8.9761]
[1764764729530,6.1553,3080.1,3080.0,6.0319]
[1764764729732,6.1553,3080.1,3080.0,8.9761]
[1764764731526,6.1553,3080.1,3080.0,3.2078]
[1764764732328,7.31514729,3080.1,3080.0,3.2078]
[1764764734431,7.54509928,3080.1,3080.0,3.2078]
[1764764736429,7.54509928,3080.1,3080.0,2.97317398]
[1764764737439,7.54528738,3080.1,3080.0,2.97317398]
[1764764737835,7.54528738,3080.1,3079.9,0.00486973]
[1764764738139,7.10204729,3079.7,3079.6,6.0515]
[1764764738430,7.33218738,3079.7,3079.6,6.0515]
[1764764739325,7.33218738,3079.7,3079.4,3.2078]
[1764764739532,7.762,3079.5,3079.4,9.2593]
[1764764739731,7.762,3079.5,3079.4,6.2393]
[1764764740537,7.762,3079.5,3079.4,6.0515]
[1764764741941,5.9422,3079.4,3079.3,3.03636973]
[1764764742244,7.10204729,3079.4,3079.3,3.03636973]
[1764764742839,7.10204729,3079.4,3079.3,0.00486973]
[1764764743041,7.33252663,3079.4,3079.3,0.00486973]
[1764764746846,4.49722663,3079.4,3079.3,6.05636973]
[1764764747148,7.33252663,3079.4,3079.3,6.05636973]
[1764764747343,7.33252663,3079.4,3079.3,3.03636973]
[1764764748140,7.33252663,3079.4,3079.3,0.00486973]
[1764764749045,7.33252663,3079.4,3079.3,3.03636973]
[1764764749446,7.33252663,3079.4,3079.3,0.00486973]
[1764764750950,7.33252663,3079.4,3079.3,3.03636973]
[1764764751243,7.3321454,3079.4,3079.3,3.03636973]
[1764764751842,7.3321454,3079.4,3079.3,6.05636973]
[1764764751843,6.17229811,3079.4,3079.3,6.05636973]
[1764764752650,7.3321454,3079.4,3079.3,3.03636973]
[1764764752858,7.3321454,3079.4,3079.3,0.00486973]
[1764764758357,7.30699051,3079.4,3079.3,0.00486973]
[1764764760148,7.30699051,3079.4,3079.3,3.03636973]
[1764764760349,7.30699051,3079.4,3079.3,0.00486973]
[1764764760755,7.30699051,3079.4,3079.3,6.05636973]
[1764764761250,0.23009811,3079.4,3079.3,6.05636973]
[1764764761448,1.8198,3080.0,3079.6,3.0315]
[1764764761449,7.0768924,3079.7,3079.6,3.0315]
[1764764761654,7.0768924,3079.7,3079.3,3.21266973]
[1764764761655,5.9422,3079.4,3079.3,3.21266973]
[1764764761849,7.0768924,3079.4,3079.3,3.21266973]
[1764764762354,7.30736665,3079.4,3079.3,0.00486973]
[1764764762655,20.28636665,3079.4,3079.3,0.00486973]
[1764764764352,20.44870665,3079.4,3079.3,0.00486973]
[1764764765154,7.4836,3079.0,3078.9,3.2078]
[1764764765457,8.84876665,3079.0,3078.9,3.2078]
[1764764765654,5.7836,3078.6,3078.5,0.00343768]
[1764764765851,5.7836,3078.2,3078.1,3.2078]
[1764764766157,7.14876665,3078.2,3078.1,3.2078]
[1764764766855,7.14876665,3078.2,3078.1,9.06451645]
[1764764767247,7.14876665,3078.2,3078.1,6.19481645]
[1764764767660,7.14876665,3078.2,3078.1,3.21121645]
[1764764768347,7.14876665,3078.2,3078.1,6.19481645]
[1764764768551,7.14876665,3078.2,3078.1,3.21121645]
[1764764769149,7.14876665,3078.2,3077.8,0.00486973]
[1764764769355,8.0529848,3077.9,3077.8,0.00486973]
[1764764769555,6.9182924,3077.9,3077.8,0.00486973]
[1764764770260,6.92141306,3077.9,3077.8,0.00820045]
[1764764771260,0.00312066,3077.9,3077.8,5.86150045]
[1764764771562,1.13781306,3077.9,3077.8,5.86150045]
[1764764771857,3.97221306,3077.9,3077.8,5.86150045]
[1764764772263,6.92141306,3077.9,3077.8,5.86150045]
[1764764772561,3.97221306,3077.9,3077.8,5.86150045]
[1764764772767,1.13781306,3077.9,3077.8,5.86150045]
[1764764772953,0.00312066,3077.9,3077.8,5.86150045]
[1764764773965,2.83752066,3077.9,3077.8,5.86150045]
[1764764774169,3.97221306,3077.9,3077.8,5.86150045]
[1764764774365,1.13781306,3077.9,3077.8,5.86150045]
[1764764775266,6.92141306,3077.9,3077.8,5.86150045]
[1764764775564,3.97221306,3077.9,3077.8,5.86150045]
[1764764775766,6.92141306,3077.9,3077.8,5.86150045]
[1764764776161,6.92141306,3077.9,3077.8,2.99180045]
[1764764776961,6.92141306,3077.9,3077.8,5.86150045]
[1764764777668,6.92141306,3077.9,3077.8,2.99180045]
[1764764778067,6.92141306,3077.9,3077.8,5.86150045]
[1764764779766,6.92141306,3077.9,3077.8,0.00820045]
[1764764780166,6.92141306,3077.9,3077.8,2.99180045]
[1764764780369,8.05610546,3077.9,3077.8,0.00820045]
[1764764780562,5.7836,3077.8,3077.7,3.07532911]
[1764764780762,6.01341552,3077.8,3077.7,3.07532911]
[1764764780957,1.7,3077.5,3077.3,3.2078]
[1764764781160,7.4836,3077.5,3077.4,5.8533]
[1764764781360,8.6182924,3077.5,3077.4,5.8533]
[1764764781560,8.6182924,3077.5,3077.4,2.98698499]
[1764764781764,8.6182924,3077.5,3077.4,0.00338499]
[1764764784066,7.4836,3077.0,3076.9,3.2078]
[1764764784265,2.8346924,3077.0,3076.9,9.0611]
[1764764784466,8.6182924,3077.0,3076.9,9.0611]
[1764764784664,3.9690924,3077.0,3076.9,9.0611]
[1764764784859,1.1346924,3077.3,3077.2,2.9836]
[1764764785065,6.9182924,3077.3,3077.2,0.00257084]
[1764764785266,6.9182924,3077.3,3077.2,5.85587084]
[1764764785667,3.9690924,3077.3,3077.2,5.85587084]
[1764764785976,6.9182924,3077.3,3077.2,5.85587084]
[1764764786272,6.9182924,3077.3,3077.2,0.00257084]
[1764764787962,6.9182924,3077.3,3076.9,3.2078]
[1764764787963,8.6182924,3077.0,3076.9,3.2078]
[1764764788966,8.6182924,3077.0,3076.9,3.21164924]
[1764764790386,21.6022924,3077.0,3076.9,3.21164924]
[1764764790982,21.6022924,3077.0,3076.9,0.00384924]
[1764764791186,24.8100924,3077.0,3076.9,0.00384924]
[1764764791684,5.7836,3076.4,3076.3,3.2078]
[1764764791889,6.9182924,3076.4,3076.3,3.2078]
[1764764792581,6.9182924,3076.4,3076.3,3.21157138]
[1764764793285,6.9182924,3076.4,3076.3,6.19517138]
[1764764793485,6.9182924,3076.4,3076.3,9.14047138]
[1764764794085,0.00486973,3076.7,3076.3,3.21157138]
[1764764794385,6.9321924,3076.4,3076.3,5.89427138]
[1764764794580,1.1346924,3076.4,3076.3,8.83957138]
[1764764796886,4.0116924,3076.4,3076.3,12.62357138]
[1764764797090,6.7055924,3076.4,3076.3,12.62357138]
[1764764797284,4.0116924,3076.4,3076.3,12.62357138]
[1764764797484,6.7055924,3076.4,3076.3,12.62357138]
[1764764798292,4.0116924,3076.4,3076.3,12.62357138]
[1764764798493,1.1346924,3076.4,3076.3,12.62357138]
[1764764799390,1.13956213,3076.7,3076.6,5.5107]
[1764764800795,0.00486973,3076.7,3076.6,5.5107]
[1764764803899,1.13956213,3076.7,3076.6,5.5107]
[1764764805096,3.85986213,3076.7,3076.6,5.5107]
[1764764805293,1.13956213,3076.7,3076.6,5.5107]
[1764764806500,3.85986213,3076.7,3076.6,5.5107]
[1764764807599,1.13956213,3076.7,3076.6,5.5107]
[1764764810203,0.00486973,3076.7,3076.6,5.5107]
[1764764810502,0.00486973,3076.7,3076.6,6.38079919]
[1764764811706,0.00486973,3076.7,3076.6,10.16482949]
[1764764813006,0.00486973,3076.7,3076.6,9.2947]
[1764764813508,0.00486973,3076.7,3076.6,10.45911877]
[1764764816306,1.13956213,3076.7,3076.6,10.45911877]
[1764764818301,0.00486973,3076.7,3076.6,10.45911877]
[1764764823413,3.2078,3077.3,3077.2,5.3433]
[1764764823617,3.2078,3077.3,3076.6,5.11089877]
[1764764823618,1.75155827,3078.8,3077.9,3.254]
[1764764823914,5.6767,3079.4,3078.7,5.50467481]
[1764764824102,3.2078,3079.4,3079.3,3.2078]
[1764764824302,2.88381306,3079.4,3079.3,4.08435042]
[1764764824513,2.88381306,3079.4,3079.3,5.8217577]
[1764764824706,2.88703336,3079.4,3079.3,5.82431182]
[1764764826611,2.88703336,3079.4,3079.3,4.08690454]
[1764764826811,0.0032203,3079.4,3079.3,4.08690454]
[1764764830021,8.15283336,3079.4,3079.3,4.08690454]
[1764764830513,5.35593336,3079.4,3079.3,4.08690454]
[1764764830716,5.35593336,3079.4,3079.3,4.95063141]
[1764764831119,8.15283336,3079.4,3079.3,4.95063141]
[1764764831921,8.15283336,3079.4,3079.3,4.08690454]
[1764764832120,8.15283336,3079.4,3079.3,3.21035412]
[1764764832612,2.88703336,3079.4,3079.3,4.08372592]
[1764764832818,5.35593336,3079.4,3079.3,4.08372592]
[1764764833313,2.88703336,3079.4,3079.3,4.08372592]
[1764764833710,2.88703336,3079.4,3079.3,3.21035412]
[1764764833915,5.35593336,3079.4,3079.3,3.21035412]
[1764764834617,2.88703336,3079.4,3079.3,3.21035412]
[1764764835122,2.88703336,3079.4,3079.3,6.99435412]
[1764764835615,0.0032203,3079.4,3079.3,6.99435412]
[1764764836021,0.0032203,3079.4,3079.3,7.86695014]
[1764764836215,0.0032203,3079.4,3079.3,6.99435412]
[1764764836418,8.15283336,3079.4,3079.3,6.99435412]
[1764764836723,2.88703336,3079.4,3079.3,6.99435412]
[1764764837117,0.0032203,3079.4,3079.3,6.99435412]
[1764764838620,2.4721203,3079.4,3079.3,6.99435412]
[1764764838824,8.15283336,3079.4,3079.3,6.99435412]
[1764764840134,8.15283336,3079.4,3079.3,3.21035412]
[1764764841325,5.2690203,3079.4,3079.3,3.21035412]
[1764764842328,5.2658,3079.1,3079.0,3.78886973]
[1764764842527,5.2658,3079.1,3079.0,6.99666973]
[1764764843219,5.2658,3079.1,3079.0,7.00065354]
[1764764844420,5.2658,3079.1,3079.0,3.21665354]
[1764764845728,5.2658,3078.6,3078.5,3.784]
[1764764845920,5.2658,3078.6,3078.5,4.10380803]
[1764764846123,5.2658,3078.6,3078.5,4.10437707]
[1764764846827,5.2658,3078.6,3078.5,4.10835511]
[1764764847832,6.42661217,3078.6,3078.5,4.10901592]
[1764764848728,6.42661217,3078.6,3078.5,0.90121592]
[1764764852126,6.42661217,3078.6,3078.5,1.76494279]
[1764764853127,6.42661217,3078.6,3078.5,2.05313958]
[1764764853527,5.2658,3078.6,3078.5,2.05313958]
[1764764854533,5.2658,3078.6,3078.5,2.0578113]
[1764764855635,6.42661217,3078.6,3078.5,2.0578113]
[1764764856035,6.65435755,3078.6,3078.5,1.76880686]
[1764764856235,6.65435755,3078.6,3078.5,0.90121592]
[1764764857237,6.42661217,3078.6,3078.5,1.76880686]
[1764764857430,6.42661217,3078.6,3078.5,0.90121592]
[1764764858131,5.2658,3078.6,3078.5,0.90121592]
[1764764859431,4.0278,3078.9,3078.5,1.76880686]
[1764764859633,4.0278,3078.9,3078.8,0.86759094]
[1764764859634,8.0729,3078.9,3078.8,0.86759094]
[1764764859931,8.0729,3078.9,3078.8,1.76482882]
[1764764860533,8.0729,3078.9,3078.8,4.97262882]
[1764764860729,8.0729,3078.9,3078.8,4.10503788]
[1764764861030,8.0729,3078.9,3078.8,4.97256613]
[1764764861840,8.0729,3078.9,3078.8,4.10503788]
[1764764862434,5.4994,3079.0,3078.8,4.10503788]
[1764764862632,8.0729,3078.9,3078.8,3.2078]
[1764764862833,8.0729,3078.9,3078.8,4.08022735]
[1764764863334,5.4994,3079.0,3078.8,4.08022735]
[1764764863641,9.5445,3079.0,3078.9,1.7403182]